bitfinex-derivatives/quotes_ETHF0:USTF0_20251031
["timestamp","ask_amount","ask_price","bid_price","bid_amount"]
[1761936162544,1.58266286,3864.6,3863.2,10.899]
[1761936162753,1.58266286,3864.6,3863.3,0.46618]
[1761936163246,1.58266286,3864.6,3863.2,11.36519]
[1761936163452,1.58266286,3864.6,3863.2,10.899]
[1761936163648,1.58266286,3864.6,3863.3,0.46618]
[1761936164048,1.58266286,3864.6,3862.8,0.7179]
[1761936164255,1.58266286,3864.6,3862.9,10.895]
[1761936164448,1.58266286,3864.6,3863.0,0.46621]
[1761936165150,1.58266286,3864.6,3862.9,10.895]
[1761936165346,1.58266286,3864.6,3863.4,1.3481]
[1761936165545,1.58266286,3864.6,3863.5,0.46616]
[1761936165741,1.58266286,3864.6,3863.4,1.3481]
[1761936166155,0.08096589,3864.5,3863.4,1.3481]
[1761936166356,0.08096589,3864.4,3863.5,0.46616]
[1761936166549,1.58266286,3864.6,3863.4,1.3481]
[1761936166752,0.08096226,3864.5,3864.4,2.2865]
[1761936166946,0.00320685,3864.6,3864.5,2.2865]
[1761936173866,3.60170685,3864.6,3863.0,1.16555]
[1761936174067,3.60170685,3864.6,3863.9,0.46611]
[1761936174965,3.60170685,3864.6,3864.0,0.4661]
[1761936175159,3.60170685,3864.6,3863.4,12.2191]
[1761936175457,3.60170685,3864.6,3863.8,0.46612]
[1761936175653,3.60170685,3864.6,3864.0,0.4661]
[1761936175854,3.60170685,3864.6,3863.5,1.16541]
[1761936176160,3.60170685,3864.6,3864.1,0.46608]
[1761936176359,3.60170685,3864.6,3864.2,0.46607]
[1761936176558,0.00320685,3864.6,3864.2,0.46607]
[1761936176758,0.00320685,3864.6,3864.0,0.6857]
[1761936177359,0.00320685,3864.6,3864.2,0.46607]
[1761936177664,0.00320685,3864.6,3864.0,1.15179]
[1761936178167,0.00320685,3864.6,3864.1,0.46609]
[1761936178370,1.33620685,3864.6,3864.0,1.1518]
[1761936178663,0.00320685,3864.6,3864.0,0.6857]
[1761936178966,1.33620685,3864.6,3864.0,0.46609]
[1761936179463,0.00320685,3864.6,3864.1,0.46609]
[1761936179967,1.33620685,3864.6,3864.2,0.46608]
[1761936180162,1.33620685,3864.6,3864.0,1.15179]
[1761936180668,1.33620685,3864.6,3864.1,0.46609]
[1761936180866,1.33620685,3864.6,3863.5,1.16539]
[1761936181063,1.33620685,3864.6,3863.4,12.2081]
[1761936181064,0.00320685,3864.6,3864.0,0.6857]
[1761936181267,0.00320685,3864.6,3864.5,2.75254]
[1761936181670,0.00320685,3864.6,3864.5,0.46604]
[1761936182371,0.00320685,3864.6,3864.5,2.75254]
[1761936182575,0.18133413,3866.3,3865.7,2.2865]
[1761936182767,0.08093051,3866.2,3865.7,2.2865]
[1761936182963,0.08093051,3866.1,3865.7,2.2865]
[1761936183168,1.333,3867.0,3865.2,1.1416]
[1761936183373,0.08092305,3866.3,3865.5,0.46591]
[1761936183570,0.08092305,3866.2,3865.6,0.4659]
[1761936183870,0.08092305,3866.1,3865.5,0.00236602]
[1761936184173,0.00227355,3866.3,3865.9,2.2865]
[1761936184374,0.08091741,3866.2,3865.9,2.75237]
[1761936184675,0.08091741,3866.1,3866.0,2.2865]
[1761936184875,0.08091743,3866.2,3866.1,2.2865]
[1761936185459,0.00227355,3866.3,3866.2,2.75233]
[1761936185671,1.37192378,3867.8,3866.5,0.46579]
[1761936185970,0.08090167,3867.5,3866.6,0.46578]
[1761936186167,1.37192378,3867.9,3866.6,0.46578]
[1761936186168,0.08090167,3867.4,3866.6,0.46578]
[1761936186470,0.08090167,3867.3,3866.6,0.46578]
[1761936186666,0.08090167,3867.2,3867.1,2.2865]
[1761936186871,0.00271839,3867.2,3867.1,2.2865]
[1761936187362,0.18613285,3868.0,3867.1,2.2865]
[1761936187559,0.08088665,3867.9,3867.1,2.2865]
[1761936187762,0.08088665,3867.8,3867.1,2.2865]
[1761936188061,2.2655,3867.2,3865.8,0.7179]
[1761936188271,1.333,3867.0,3865.8,0.7179]
[1761936188567,0.08088665,3866.9,3865.8,0.7179]
[1761936188771,0.08088665,3866.9,3865.5,0.00236602]
[1761936190067,0.08092249,3866.8,3865.5,0.00236602]
[1761936190373,1.33584788,3867.0,3865.5,0.00236602]
[1761936190374,0.08092249,3866.7,3865.5,0.00236602]
[1761936190571,0.08092249,3866.6,3865.5,0.00236602]
[1761936190878,2.2387,3865.6,3865.5,0.00236602]
[1761936191076,2.31962249,3865.6,3865.5,0.00236602]
[1761936191374,2.50909748,3865.6,3865.5,0.00236602]
[1761936192675,2.50909748,3865.6,3863.7,0.67938304]
[1761936192979,0.08092249,3865.5,3864.2,0.46607]
[1761936193170,0.08092249,3865.5,3864.0,1.8387]
[1761936193571,0.08092249,3865.5,3863.4,1.3726]
[1761936193776,0.08092249,3865.5,3864.0,0.0032531]
[1761936194169,1.45284627,3865.5,3864.0,0.0032531]
[1761936194368,0.08092249,3865.4,3864.0,0.0032531]
[1761936195381,0.08092249,3865.4,3862.8,1.1009]
[1761936195382,1.3785,3864.0,3862.8,1.1009]
[1761936195572,0.08092249,3863.9,3862.8,1.56714]
[1761936195874,0.08092249,3863.9,3862.8,1.1009]
[1761936196080,0.08092249,3863.9,3863.3,0.46618]
[1761936196275,0.08092249,3863.9,3862.8,1.1009]
[1761936196581,0.08275855,3863.9,3863.0,0.46621]
[1761936196876,0.08092249,3863.8,3862.8,1.10275416]
[1761936197670,0.08092249,3863.8,3863.0,0.46621]
[1761936197871,0.08092249,3863.8,3863.1,0.46621]
[1761936198779,0.08092249,3863.8,3862.9,0.46622]
[1761936198979,0.08092249,3863.8,3862.8,1.10275416]
[1761936199177,0.08092249,3863.8,3862.9,0.46623]
[1761936199579,0.08092249,3863.8,3863.0,0.46622]
[1761936199775,0.08092249,3863.8,3862.8,1.10275416]
[1761936199971,0.08092249,3863.8,3862.8,0.00185416]
[1761936200580,0.08092249,3863.8,3862.9,0.46623]
[1761936200778,0.08092249,3863.8,3862.8,1.78479416]
[1761936200973,0.08092249,3863.8,3862.8,1.31855416]
[1761936201179,0.00183606,3863.9,3863.7,2.298]
[1761936201477,0.00183606,3863.9,3863.2,0.4662]
[1761936201781,0.00183606,3863.9,3863.2,0.46619]
[1761936202077,0.00183606,3863.9,3862.8,1.31855416]
[1761936202270,0.00183606,3863.9,3862.8,1.78479416]
[1761936202470,0.00183606,3863.9,3862.8,1.31855416]
[1761936202675,0.00183606,3863.9,3862.8,1.78479416]
[1761936202882,0.00183606,3863.9,3862.8,1.31855416]
[1761936203078,0.00183606,3863.9,3863.0,0.46622]
[1761936203479,0.00183606,3863.9,3862.8,1.31855416]
[1761936203985,0.00183606,3863.9,3862.9,0.46623]
[1761936203986,0.08097868,3863.8,3862.9,0.46623]
[1761936204282,0.00183606,3863.9,3862.8,0.46809416]
[1761936204468,0.08097925,3863.8,3862.8,0.46809416]
[1761936204778,0.00183606,3863.9,3862.8,0.00185416]
[1761936204977,0.00183606,3863.9,3862.8,1.31855416]
[1761936205177,0.00183606,3863.9,3863.1,0.46621]
[1761936205680,0.00183606,3863.9,3862.9,0.46623]
[1761936205881,0.00183606,3863.9,3862.8,1.78479416]
[1761936206083,0.00183606,3863.9,3862.9,0.46623]
[1761936206273,0.00183606,3863.9,3863.0,0.46622]
[1761936206675,0.00183606,3863.9,3863.1,0.4662]
[1761936208483,0.00183606,3863.9,3862.8,1.78479416]
[1761936208784,2.1778,3862.9,3862.8,0.00185416]
[1761936209286,1.4056,3863.4,3862.8,0.00185416]
[1761936210988,2.1778,3862.9,3862.8,0.00185416]
[1761936213582,2.36998161,3862.9,3862.8,0.00185416]
[1761936214083,1.4056,3863.4,3862.8,0.00185416]
[1761936215482,1.59130042,3863.4,3862.8,0.00185416]
[1761936216285,2.1778,3862.9,3862.8,0.00185416]
[1761936216588,1.59130042,3863.4,3861.3,1.16607]
[1761936216589,1.4056,3862.8,3861.3,1.16607]
[1761936216887,1.4056,3862.8,3862.0,0.46634]
[1761936217087,1.4056,3862.8,3861.9,0.46634]
[1761936217485,1.4056,3862.8,3862.1,0.46632]
[1761936217992,1.4056,3862.8,3861.9,0.00317708]
[1761936218992,1.4056,3862.8,3862.0,0.46634]
[1761936219193,0.08099885,3862.7,3862.0,0.46634]
[1761936219395,1.4056,3862.8,3862.0,0.46634]
[1761936219595,0.08099885,3862.7,3862.0,0.46634]
[1761936219797,1.4056,3862.8,3862.0,0.46634]
[1761936219990,0.08099884,3862.7,3862.0,0.46634]
[1761936220295,1.3229,3862.5,3861.9,0.46952708]
[1761936220493,3.5405,3862.0,3861.9,0.00317708]
[1761936221386,1.3229,3862.5,3861.9,0.00317708]
[1761936221595,0.08100541,3862.4,3861.9,0.00317708]
[1761936221796,0.08100541,3862.3,3861.9,0.00317708]
[1761936221998,0.08100541,3862.2,3861.9,0.00317708]
[1761936222194,0.08100541,3862.1,3861.9,0.00317708]
[1761936222490,1.3229,3862.5,3861.9,0.00317708]
[1761936222796,0.08100543,3862.4,3861.9,0.00317708]
[1761936222995,0.08100543,3862.3,3861.9,0.00317708]
[1761936223196,0.08100543,3862.2,3861.9,0.00317708]
[1761936223497,0.08100543,3862.1,3861.9,0.00317708]
[1761936223695,1.3229,3862.5,3861.9,0.46952708]
[1761936223891,0.08100316,3862.4,3861.9,0.00317708]
[1761936224200,0.08100316,3862.3,3862.2,2.59612]
[1761936224498,5.02374106,3863.4,3862.3,0.4663]
[1761936224692,0.08099524,3863.3,3862.3,0.4663]
[1761936224893,5.02374106,3863.4,3862.0,0.9104]
[1761936224894,0.08099524,3863.2,3862.0,0.9104]
[1761936225199,2.9632242,3863.4,3862.0,0.9104]
[1761936225200,1.3229,3863.0,3862.3,0.4663]
[1761936225389,1.3229,3863.0,3862.0,0.9104]
[1761936225390,0.08099524,3862.9,3862.0,0.9104]
[1761936225590,1.3229,3863.0,3862.0,0.9104]
[1761936225591,0.08099524,3862.8,3862.0,0.9104]
[1761936225796,0.08099524,3862.7,3862.3,0.46629]
[1761936225992,0.08099524,3862.6,3862.5,0.46628]
[1761936226199,0.08099524,3862.6,3862.5,2.59608]
[1761936226499,0.08099524,3862.6,3862.0,0.9104]
[1761936226700,1.3229,3863.0,3862.0,0.9104]
[1761936226901,0.08099282,3862.9,3862.0,0.9104]
[1761936227206,0.08099282,3862.8,3862.3,0.4663]
[1761936227393,0.08099282,3862.7,3862.3,0.4663]
[1761936227698,0.08099282,3862.6,3862.3,0.4663]
[1761936227887,1.3229,3863.0,3862.3,0.4663]
[1761936228090,0.08099284,3862.9,3862.3,0.4663]
[1761936228294,0.08099284,3862.8,3862.3,0.4663]
[1761936228495,0.08099284,3862.7,3862.3,0.4663]
[1761936228697,0.08099284,3862.6,3862.3,0.4663]
[1761936228895,1.3229,3863.0,3862.5,2.59608]
[1761936229202,0.08099368,3862.9,3862.8,2.1298]
[1761936231002,0.08099368,3862.9,3862.8,2.59604]
[1761936231302,0.00183606,3863.9,3863.0,1.17321]
[1761936231505,0.08097896,3863.8,3863.0,1.17321]
[1761936231703,0.08097896,3863.7,3863.1,0.4662]
[1761936231898,0.08097896,3863.6,3863.1,0.4662]
[1761936232199,0.08097896,3863.5,3863.4,2.59597]
[1761936234705,0.08097896,3863.5,3863.4,2.1298]
[1761936235407,0.08097896,3863.5,3863.4,5.3376]
[1761936236205,3.62147896,3863.5,3863.4,3.2078]
[1761936238707,11.62147896,3863.5,3862.2,0.26074268]
[1761936238911,3.2078,3862.3,3860.5,1.76383116]
[1761936239113,3.2078,3860.9,3860.0,1.2125]
[1761936239311,0.08097896,3860.8,3860.0,1.2125]
[1761936239612,3.2078,3860.4,3860.0,1.2125]
[1761936239808,0.08097896,3860.3,3860.0,1.2125]
[1761936240112,0.57270971,3860.2,3860.0,1.21504116]
[1761936240305,0.65368867,3860.1,3860.0,1.21504116]
[1761936240705,0.65368867,3860.1,3860.0,3.34484116]
[1761936243105,0.65368867,3860.1,3860.0,1.21504116]
[1761936243307,3.86148867,3860.1,3860.0,1.21504116]
[1761936244816,1.81973169,3861.8,3860.4,1.2125]
[1761936245017,1.37151954,3861.2,3861.1,0.46645]
[1761936245215,1.116,3863.4,3861.7,3.2078]
[1761936245514,3.2078,3863.3,3861.7,10.687]
[1761936245713,1.116,3863.4,3861.7,10.687]
[1761936245917,1.116,3863.4,3862.7,0.46624]
[1761936246123,1.116,3863.4,3863.0,0.46621]
[1761936246618,1.116,3863.4,3862.9,3.2078]
[1761936246817,1.116,3863.4,3862.9,0.00280149]
[1761936247018,1.1183839,3863.4,3862.9,0.00280149]
[1761936250515,1.1183839,3863.4,3863.0,0.46621]
[1761936250722,1.1183839,3863.4,3862.9,3.21060149]
[1761936251523,1.1183839,3863.4,3862.9,3.67683149]
[1761936251724,1.1183839,3863.4,3863.1,0.4662]
[1761936252118,1.1183839,3863.4,3863.3,3.2078]
[1761936252324,4.5307,3864.7,3863.3,3.2078]
[1761936252523,4.5307,3864.7,3864.0,3.2078]
[1761936252816,4.5307,3864.7,3863.0,3.2078]
[1761936252817,1.4146,3864.0,3863.0,3.2078]
[1761936253023,3.2078,3863.9,3863.0,3.2078]
[1761936253218,3.2078,3863.9,3863.0,3.67401]
[1761936253421,1.4146,3863.3,3863.0,3.2078]
[1761936253813,1.4146,3863.3,3863.0,3.67401]
[1761936256530,2.1645,3863.0,3862.9,0.00280149]
[1761936256918,2.1645,3863.0,3862.9,1.49e-06]
[1761936257119,2.1645,3862.2,3861.7,3.2078]
[1761936257415,2.1645,3861.8,3861.7,3.2078]
[1761936258231,2.1645,3861.8,3861.7,3.21003516]
[1761936260421,1.4146,3861.9,3861.7,3.21003516]
[1761936262125,2.239,3861.8,3861.7,3.21003516]
[1761936262628,1.4146,3861.9,3861.7,3.21003516]
[1761936263726,1.4146,3861.9,3861.7,3.67640516]
[1761936263929,1.4146,3861.9,3861.7,3.21003516]
[1761936264128,3.2078,3863.8,3862.3,1.16575]
[1761936264324,0.08100256,3863.7,3862.9,3.2078]
[1761936264534,1.2784,3863.3,3863.2,0.46619]
[1761936264719,3.21035986,3863.9,3863.2,0.46619]
[1761936264924,0.08097758,3863.8,3863.6,0.46614]
[1761936265222,3.21035986,3863.9,3863.7,0.46612]
[1761936265521,0.08097497,3863.8,3863.7,0.46612]
[1761936265926,0.00255986,3863.9,3863.7,0.46612]
[1761936266218,0.00255986,3863.9,3863.3,3.2078]
[1761936266424,0.00255986,3863.9,3863.6,0.46614]
[1761936266926,0.00255986,3863.9,3863.7,0.46613]
[1761936267127,2.239,3863.8,3863.3,3.2078]
[1761936267327,1.2784,3863.3,3862.7,3.2078]
[1761936267737,3.17492887,3866.0,3862.9,2.33118]
[1761936267935,1.38598108,3866.3,3865.2,0.46595]
[1761936268237,3.0303284,3867.4,3865.3,10.651]
[1761936268426,3.11124779,3867.3,3865.4,11.64835]
[1761936268623,3.0303284,3867.4,3865.5,40.8]
[1761936268935,3.0303284,3867.4,3867.3,3.2078]
[1761936269139,3.03331792,3867.4,3867.3,3.20972422]
[1761936269729,5.27231792,3867.4,3867.3,3.20972422]
[1761936270528,3.03331792,3867.4,3867.3,3.20972422]
[1761936271237,0.00298952,3867.4,3867.3,3.20972422]
[1761936272839,5.27231792,3867.4,3867.3,3.20972422]
[1761936273328,3.03331792,3867.4,3867.3,3.20972422]
[1761936275136,5.27231792,3867.4,3867.3,3.20972422]
[1761936275339,2.239,3866.9,3866.8,3.2078]
[1761936275535,0.00298952,3867.4,3866.8,3.2078]
[1761936276337,0.00298952,3867.4,3866.8,3.21097961]
[1761936276540,0.00298952,3867.4,3867.2,3.2078]
[1761936277038,0.00298952,3867.4,3866.8,3.21097961]
[1761936277039,2.239,3867.3,3866.8,3.21097961]
[1761936281739,3.2078,3867.1,3866.2,3.2078]
[1761936282046,1.3349,3866.8,3866.2,3.2078]
[1761936282644,1.3349,3866.8,3866.2,3.67362]
[1761936282948,1.3349,3866.8,3866.2,3.2078]
[1761936283142,1.3349,3866.8,3866.2,3.21045305]
[1761936283341,3.2078,3867.1,3866.7,2.56948]
[1761936283543,3.2078,3867.1,3866.2,3.21045305]
[1761936283544,1.3349,3867.0,3866.2,3.21045305]
[1761936283742,1.3349,3867.0,3866.6,0.46578]
[1761936284348,1.3349,3867.0,3866.2,3.21045305]
[1761936284737,1.3349,3867.0,3866.6,0.46578]
[1761936285449,1.3349,3867.0,3866.4,0.46581]
[1761936285750,1.3349,3867.0,3866.2,3.21045305]
[1761936286350,1.3349,3867.0,3866.4,0.4658]
[1761936286535,1.3349,3867.0,3866.5,0.4658]
[1761936287350,1.3349,3867.0,3866.2,3.21045305]
[1761936288151,1.3349,3867.0,3866.2,4.37502305]
[1761936288351,1.3349,3867.0,3866.2,3.21045305]
[1761936288650,1.3349,3867.0,3866.6,0.46579]
[1761936288850,1.3349,3867.0,3866.7,0.46577]
[1761936289746,1.3349,3866.4,3866.2,3.21045305]
[1761936289949,1.3349,3867.0,3866.6,0.46578]
[1761936290143,1.3349,3867.0,3866.4,0.4658]
[1761936290451,1.3349,3866.4,3866.2,3.21045305]
[1761936290854,1.3349,3866.4,3866.2,3.67628305]
[1761936291748,1.3349,3867.0,3866.6,0.46579]
[1761936291948,1.3349,3867.0,3866.4,0.4658]
[1761936292153,3.6996,3867.0,3866.3,1.16456]
[1761936292459,0.08090509,3866.9,3866.5,0.46579]
[1761936292657,1.3349,3867.0,3866.6,0.46578]
[1761936292845,0.08090533,3866.9,3866.6,0.46578]
[1761936293047,3.2078,3867.1,3866.2,3.21045305]
[1761936293247,1.41580406,3867.0,3866.2,3.21045305]
[1761936293552,2.3647,3866.7,3866.4,0.4658]
[1761936293848,0.08090406,3866.6,3866.4,0.4658]
[1761936294056,1.3349,3867.0,3866.4,0.4658]
[1761936294249,0.0809049,3866.9,3866.4,0.4658]
[1761936294441,0.0809049,3866.8,3866.4,0.4658]
[1761936294642,0.0809049,3866.7,3866.5,0.46579]
[1761936294845,0.0809049,3866.6,3866.5,0.46579]
[1761936295247,2.3647,3866.3,3866.2,3.21045305]
[1761936295442,2.4456049,3866.3,3866.2,0.00265305]
[1761936298349,2.4456049,3866.3,3864.1,1.76383116]
[1761936298350,3.2078,3865.9,3864.1,1.76383116]
[1761936298551,2.3647,3863.8,3861.4,4.37382]
[1761936298751,5.5725,3863.2,3862.2,1.4191]
[1761936298955,1.3349,3863.4,3862.2,1.4191]
[1761936298956,1.39568077,3862.3,3862.2,3.7338]
[1761936299149,0.68389669,3862.3,3862.2,3.7338]
[1761936299350,0.68644782,3862.3,3862.2,4.83964894]
[1761936300055,1.8609077,3863.2,3862.3,2.3147]
[1761936300255,13.79992887,3864.7,3862.2,4.62994014]
[1761936300256,3.2078,3862.8,3862.2,4.62994014]
[1761936300454,3.2078,3863.5,3862.6,0.46626]
[1761936300757,3.2078,3863.2,3862.7,0.46625]
[1761936300958,3.2078,3863.2,3862.5,0.46628]
[1761936301160,3.2078,3862.8,3862.2,0.00304014]
[1761936301368,1.3349,3863.3,3862.2,0.00304014]
[1761936301369,5.5725,3862.3,3862.2,0.00304014]
[1761936302047,13.5725,3862.3,3861.0,1.0519]
[1761936302251,3.2078,3861.3,3860.7,0.46649]
[1761936302560,3.2078,3861.3,3861.0,0.46645]
[1761936302755,3.2078,3862.2,3861.2,1.4191]
[1761936303253,3.2078,3862.2,3862.0,0.46634]
[1761936303459,3.2078,3862.2,3861.8,0.46636]
[1761936303650,3.2078,3862.2,3861.2,1.42155255]
[1761936303651,3.2078,3862.2,3861.9,0.46635]
[1761936304054,3.2078,3862.2,3861.2,1.42155255]
[1761936305062,3.2078,3862.2,3861.5,0.46639]
[1761936305263,3.2078,3861.8,3861.2,1.42155255]
[1761936305751,3.2078,3861.4,3861.2,0.00245255]
[1761936306060,2.3647,3861.3,3861.2,0.00245255]
[1761936307663,2.3647,3860.9,3860.8,0.42007559]
[1761936307867,5.5725,3860.9,3859.7,0.02590909]
[1761936308163,5.5725,3859.8,3859.7,0.02590909]
[1761936308368,3.2078,3860.2,3859.8,0.46661]
[1761936308560,3.2078,3860.2,3859.7,0.02590909]
[1761936308761,3.2078,3859.8,3859.7,0.02835227]
[1761936310047,5.5725,3859.8,3859.7,0.02835227]
[1761936310262,6.9062,3859.8,3859.7,0.02835227]
[1761936310962,5.5725,3859.8,3859.7,0.02835227]
[1761936311362,0.00295515,3860.2,3859.7,0.02835227]
[1761936311565,3.2078,3860.1,3859.7,0.02835227]
[1761936312166,3.4861,3859.8,3859.7,0.02835227]
[1761936312569,3.4861,3859.8,3858.8,3.2078]
[1761936312570,3.4861,3859.8,3858.0,4.37486]
[1761936312765,3.2078,3859.1,3858.8,0.46672]
[1761936312957,3.2078,3859.1,3858.0,4.37486]
[1761936313270,3.2078,3859.1,3858.7,0.46674]
[1761936313462,4.5415,3859.1,3858.6,0.46675]
[1761936313766,4.5415,3859.1,3858.7,0.00204031]
[1761936313968,4.5415,3859.1,3858.7,0.46878031]
[1761936314160,4.5415,3859.1,3858.7,0.00204031]
[1761936314864,3.2078,3859.1,3858.7,0.00204031]
[1761936315169,2.1524,3858.8,3858.7,0.00204031]
[1761936315964,2.1524,3858.8,3857.0,1.4191]
[1761936316272,3.2078,3857.8,3857.0,1.4191]
[1761936316462,3.2078,3857.8,3857.2,0.46692]
[1761936316660,3.2078,3857.8,3857.1,0.46693]
[1761936316860,3.2078,3857.8,3857.2,0.46692]
[1761936317063,3.2078,3857.8,3857.0,1.4191]
[1761936317266,3.2078,3857.8,3857.2,0.46692]
[1761936317458,3.2078,3857.8,3856.9,3.2078]
[1761936317662,3.2078,3857.4,3856.6,10.635]
[1761936317872,3.21105918,3857.4,3856.6,0.00315246]
[1761936318571,0.65595359,3857.3,3856.6,0.00315246]
[1761936318771,3.21105918,3857.4,3856.6,0.00315246]
[1761936319074,0.6559532,3857.3,3857.1,0.46693]
[1761936319272,3.21105918,3857.4,3856.6,0.00315246]
[1761936319470,2.80823374,3857.3,3857.2,0.46692]
[1761936319875,2.80823374,3857.3,3857.0,0.46694]
[1761936320174,0.65614293,3857.2,3857.0,0.46694]
[1761936320478,0.65614293,3857.2,3856.6,0.00315246]
[1761936320479,3.21105918,3857.4,3857.2,0.46692]
[1761936320660,0.65585572,3857.3,3857.2,0.46692]
[1761936320864,0.65585572,3857.3,3856.6,0.00315246]
[1761936321064,3.21105918,3857.4,3857.2,0.46691]
[1761936321370,3.21105918,3857.4,3857.3,2.3128]
[1761936321582,0.00325918,3857.4,3857.3,2.3128]
[1761936322068,3.21105918,3857.4,3856.1,3.2078]
[1761936322276,3.2078,3857.0,3856.1,3.2078]
[1761936322576,0.00325918,3857.4,3857.2,0.46691]
[1761936322577,3.21105918,3857.4,3857.2,0.46691]
[1761936322766,0.65639274,3857.3,3856.5,3.2078]
[1761936322968,0.65639274,3857.2,3856.5,3.2078]
[1761936323174,0.65639274,3857.1,3856.9,0.46695]
[1761936323375,3.21105918,3857.4,3857.1,0.46692]
[1761936323575,0.65698849,3857.3,3857.1,0.46692]
[1761936323779,0.65698849,3857.2,3857.1,0.46692]
[1761936324079,0.65698849,3857.2,3857.1,2.77972]
[1761936325364,1.36573607,3858.0,3857.9,0.46684]
[1761936325569,1.36573607,3858.5,3858.0,0.46681]
[1761936325770,1.36573607,3858.5,3858.1,0.46681]
[1761936326179,1.36573607,3858.3,3858.0,0.46682]
[1761936326677,1.36573607,3858.3,3858.1,0.46681]
[1761936326883,0.00290349,3858.3,3858.1,0.46681]
[1761936327179,0.00290349,3858.3,3858.2,2.3128]
[1761936328478,0.00290349,3858.3,3858.1,10.634]
[1761936328880,0.00290349,3858.3,3858.1,0.46681]
[1761936329076,1.8432715,3858.3,3858.1,0.46681]
[1761936329271,1.84036801,3858.2,3858.1,0.46681]
[1761936330383,1.92144523,3858.2,3858.1,11.09881]
[1761936331289,0.08107722,3858.2,3858.1,11.09881]
[1761936332090,0.08107722,3858.2,3858.1,11.09781]
[1761936332583,0.08107722,3858.2,3858.1,0.46681]
[1761936332784,0.08107722,3858.2,3858.1,11.09681]
[1761936332985,1.92638226,3858.2,3858.1,11.09681]
[1761936333482,0.08107722,3858.2,3858.1,10.63]
[1761936333682,5.60077301,3858.2,3856.9,3.2078]
[1761936333892,5.05498809,3857.6,3857.5,0.46689]
[1761936334082,3.28887722,3857.6,3857.5,2.77969]
[1761936334282,5.13606531,3857.6,3857.5,2.77969]
[1761936334682,5.13606531,3857.6,3857.5,2.3128]
[1761936334986,5.13606531,3857.6,3857.5,12.9408]
[1761936334987,3.28887722,3857.6,3857.5,12.9408]
[1761936335387,3.28887722,3857.6,3857.5,13.40769]
[1761936335592,3.28887722,3857.6,3857.5,13.40669]
[1761936336181,5.13606531,3857.6,3857.5,13.40669]
[1761936337190,3.28887722,3857.6,3857.5,13.40669]
[1761936337391,2.550227,3857.6,3857.5,13.40669]
[1761936337588,0.69431992,3857.6,3857.5,16.61449]
[1761936338090,0.08107722,3857.6,3857.5,16.61449]
[1761936338292,1.3917798,3858.2,3858.1,0.46681]
[1761936338497,1.47285946,3858.2,3858.1,11.09181]
[1761936338684,1.47285946,3858.2,3858.1,10.625]
[1761936338887,1.47285946,3858.2,3858.1,11.09181]
[1761936339086,1.47285946,3858.2,3858.1,13.40461]
[1761936339294,0.08107966,3858.2,3858.1,13.40461]
[1761936340488,0.08107966,3858.2,3858.1,0.46681]
[1761936340796,0.08107966,3858.2,3858.1,11.08981]
[1761936341200,1.47285946,3858.2,3858.1,11.08981]
[1761936342084,1.47285946,3858.2,3858.1,13.44931]
[1761936343197,0.08107966,3858.2,3858.1,13.44931]
[1761936343387,2.42877966,3858.2,3857.7,0.46686]
[1761936343592,0.00290349,3858.3,3857.1,3.2078]
[1761936343593,1.39612187,3857.8,3857.1,3.2078]
[1761936343796,2.74732187,3857.4,3856.7,3.2078]
[1761936344000,1.47720153,3857.3,3857.1,0.46693]
[1761936344194,1.47720153,3857.2,3857.1,0.46693]
[1761936344389,1.47720153,3857.2,3857.0,11.08495]
[1761936344594,1.39612187,3857.2,3857.1,0.46693]
[1761936344799,1.39612187,3857.2,3857.0,10.618]
[1761936344800,1.47721984,3857.2,3857.0,11.08494]
[1761936345000,0.08109797,3857.1,3857.0,11.08494]
[1761936345301,0.08109797,3857.1,3857.0,10.618]
[1761936345491,0.08109797,3857.1,3857.0,11.08495]
[1761936345692,0.08109797,3857.1,3857.0,10.617]
[1761936345999,0.08109855,3857.1,3857.0,11.08395]
[1761936346196,2.42879855,3857.1,3856.7,10.615]
[1761936346402,3.2078,3856.8,3856.6,0.00315246]
[1761936346699,0.08109855,3856.7,3856.6,0.47014246]
[1761936346999,0.08109855,3856.7,3856.6,2.83264246]
[1761936347189,0.08109855,3856.7,3856.6,10.61715246]
[1761936347390,1.47792099,3856.7,3856.6,11.08414246]
[1761936347889,1.47792099,3856.7,3856.6,13.44664246]
[1761936348096,0.08109855,3856.7,3856.6,13.44664246]
[1761936348300,0.08109855,3856.7,3856.6,11.08414246]
[1761936348599,0.08109855,3856.7,3856.6,2.83264246]
[1761936348899,0.08109855,3856.7,3856.6,10.61515246]
[1761936349092,2.42879855,3856.7,3856.6,0.47014246]
[1761936349304,0.08109855,3856.7,3856.6,0.47014246]
[1761936350403,0.08109855,3856.7,3856.6,2.83264246]
[1761936351104,0.08109855,3856.7,3856.6,13.44264246]
[1761936351400,0.08109855,3856.7,3856.6,2.83264246]
[1761936351590,0.08109855,3856.7,3856.6,13.44164246]
[1761936352495,3.2078,3857.2,3857.1,2.82943]
[1761936352701,0.08109821,3857.2,3857.1,13.43843]
[1761936353296,3.2078,3858.0,3857.9,2.82934]
[1761936354997,3.2078,3858.0,3857.9,13.43534]
[1761936356602,3.2078,3858.0,3857.9,0.46684]
[1761936356603,4.559,3858.0,3857.9,0.46684]
[1761936356808,4.559,3858.0,3857.4,3.2078]
[1761936357109,5.5555,3858.0,3857.9,11.06784]
[1761936357302,3.2078,3858.0,3857.9,11.06784]
[1761936357607,3.2078,3858.0,3857.9,10.601]
[1761936358000,3.2078,3858.0,3857.7,0.46686]
[1761936358216,3.2078,3858.0,3857.4,3.2078]
[1761936358217,2.3477,3857.5,3857.4,3.2078]
[1761936358400,2.3477,3857.5,3856.8,1.4107]
[1761936358401,2.3477,3857.4,3857.3,0.46691]
[1761936358708,3.2078,3857.6,3856.9,3.2078]
[1761936359010,3.2078,3857.6,3857.0,10.597]
[1761936359210,3.2078,3857.6,3856.6,0.00315246]
[1761936359507,2.3477,3857.3,3857.2,0.46692]
[1761936359814,3.2078,3857.6,3857.3,0.4669]
[1761936360305,3.2078,3857.6,3857.5,0.46689]
[1761936360605,3.2078,3857.6,3857.5,2.82939]
[1761936360805,3.2078,3857.6,3857.3,0.4669]
[1761936361009,2.3477,3857.4,3857.3,10.594]